[Event "*** Titled Tuesday 3|2 Blitz"]
[Site "Chess.com"]
[Date "2017.05.02"]
[Round "8"]
[White "eldur16"]
[Black "Rikikits"]
[Result "0-1"]
[WhiteElo "2456"]
[BlackElo "2581"]
[TimeControl "180+2"]
[EndTime "14:46:22 PDT"]
[Termination "Rikikits won by resignation"]

1. d4 {[%clk 0:03:02]} 1... Nf6 {[%clk 0:02:58.9]} 2. c4 {[%clk 0:03:02.4]} 2...
g6 {[%clk 0:03:00.8]} 3. Nc3 {[%clk 0:03:02.8]} 3... Bg7 {[%clk 0:03:01.4]} 4.
e4 {[%clk 0:03:03.5]} 4... O-O {[%clk 0:03:01.4]} 5. Nge2 {[%clk 0:03:02.1]}
5... d6 {[%clk 0:03:01.5]} 6. f3 {[%clk 0:03:02.2]} 6... c5 {[%clk 0:02:55.3]}
7. d5 {[%clk 0:03:03]} 7... e6 {[%clk 0:02:56.3]} 8. Ng3 {[%clk 0:03:03.8]} 8...
a6 {[%clk 0:02:56.2]} 9. a4 {[%clk 0:03:02]} 9... h5 {[%clk 0:02:57]} 10. Be2
{[%clk 0:03:02.1]} 10... h4 {[%clk 0:02:56.9]} 11. Nf1 {[%clk 0:03:02.9]} 11...
Re8 {[%clk 0:02:57.9]} 12. Nd2 {[%clk 0:03:02.1]} 12... h3 {[%clk 0:02:57.2]}
13. g3 {[%clk 0:02:59.7]} 13... exd5 {[%clk 0:02:57.4]} 14. cxd5 {[%clk
0:02:57.7]} 14... Nbd7 {[%clk 0:02:59.3]} 15. Nc4 {[%clk 0:02:52.6]} 15... Nb6
{[%clk 0:02:56.1]} 16. Ne3 {[%clk 0:02:52.7]} 16... Bd7 {[%clk 0:02:52.8]} 17.
O-O {[%clk 0:02:51.3]} 17... Rb8 {[%clk 0:02:42.4]} 18. a5 {[%clk 0:02:47.3]}
18... Na8 {[%clk 0:02:39]} 19. Nc4 {[%clk 0:02:47.6]} 19... Bb5 {[%clk
0:02:29.4]} 20. Ra3 {[%clk 0:02:39.5]} 20... Bxc4 {[%clk 0:02:10.3]} 21. Bxc4
{[%clk 0:02:39.6]} 21... Nc7 {[%clk 0:02:12.2]} 22. Qd3 {[%clk 0:02:36.6]} 22...
Nd7 {[%clk 0:02:10.7]} 23. f4 {[%clk 0:02:33.8]} 23... b5 {[%clk 0:02:11]} 24.
axb6 {[%clk 0:02:33.2]} 24... Nxb6 {[%clk 0:02:12]} 25. Bxa6 {[%clk 0:02:29.2]}
25... Bd4+ {[%clk 0:02:05.7]} 26. Kh1 {[%clk 0:02:23.4]} 26... Qe7 {[%clk
0:02:01.8]} 27. Bb5 {[%clk 0:01:58.8]} 27... Bxc3 {[%clk 0:01:22.5]} 28. Bxe8
{[%clk 0:01:55.6]} 28... Rxe8 {[%clk 0:01:23.4]} 29. Rxc3 {[%clk 0:01:39.6]}
29... c4 {[%clk 0:01:02.8]} 30. Qd4 {[%clk 0:01:23.6]} 30... Nb5 {[%clk
0:01:01.4]} 31. Qxb6 {[%clk 0:01:10.5]} 31... Qxe4+ {[%clk 0:00:47.8]} 32. Rcf3
{[%clk 0:01:00.8]} 32... Nd4 {[%clk 0:00:49]} 0-1

[Event "*** Titled Tuesday 3|2 Blitz"]
[Site "Chess.com"]
[Date "2017.05.02"]
[Round "8"]
[White "roldieyi"]
[Black "DavidForthoffer"]
[Result "1-0"]
[WhiteElo "2112"]
[BlackElo "2096"]
[TimeControl "180+2"]
[EndTime "14:46:24 PDT"]
[Termination "roldieyi won by resignation"]

1. d4 {[%clk 0:02:56.7]} 1... c6 {[%clk 0:03:01.1]} 2. Nf3 {[%clk 0:02:57.6]}
2... d5 {[%clk 0:03:02.5]} 3. c4 {[%clk 0:02:57.5]} 3... Nf6 {[%clk 0:03:02.6]}
4. Nc3 {[%clk 0:02:57.8]} 4... dxc4 {[%clk 0:03:00.5]} 5. a4 {[%clk 0:02:58.1]}
5... Bf5 {[%clk 0:03:01.2]} 6. Ne5 {[%clk 0:02:55.5]} 6... Na6 {[%clk
0:02:59.1]} 7. Nxc4 {[%clk 0:02:54.5]} 7... Nb4 {[%clk 0:02:59.6]} 8. Ne3 {[%clk
0:02:51.3]} 8... Bg6 {[%clk 0:02:59.9]} 9. g3 {[%clk 0:02:44.9]} 9... e6 {[%clk
0:02:46.6]} 10. Bg2 {[%clk 0:02:43.2]} 10... Be7 {[%clk 0:02:47.7]} 11. O-O
{[%clk 0:02:41.7]} 11... O-O {[%clk 0:02:44.6]} 12. h3 {[%clk 0:02:39.1]} 12...
Rb8 {[%clk 0:02:41.1]} 13. b3 {[%clk 0:02:36.8]} 13... c5 {[%clk 0:02:41.3]} 14.
Nb5 {[%clk 0:02:29.4]} 14... a6 {[%clk 0:02:37.6]} 15. Na3 {[%clk 0:02:27.6]}
15... Qxd4 {[%clk 0:02:31.8]} 16. Qxd4 {[%clk 0:01:59.4]} 16... cxd4 {[%clk
0:02:33.7]} 17. Nec4 {[%clk 0:01:58]} 17... b5 {[%clk 0:02:20.4]} 18. Ne5 {[%clk
0:01:52]} 18... bxa4 {[%clk 0:02:11.7]} 19. bxa4 {[%clk 0:01:45.3]} 19... Nfd5
{[%clk 0:02:05.8]} 20. Nxg6 {[%clk 0:01:37.7]} 20... hxg6 {[%clk 0:02:06.2]} 21.
Bd2 {[%clk 0:01:35.5]} 21... Rfc8 {[%clk 0:01:49.9]} 22. Rfc1 {[%clk 0:01:30.3]}
22... Nc3 {[%clk 0:01:49.8]} 23. Bf1 {[%clk 0:01:25.7]} 23... Nbd5 {[%clk
0:01:41.7]} 24. Nc2 {[%clk 0:01:10.5]} 24... e5 {[%clk 0:01:36.2]} 25. e3 {[%clk
0:00:58.3]} 25... dxe3 {[%clk 0:01:29.6]} 26. Nxe3 {[%clk 0:00:52.2]} 26... Nxe3
{[%clk 0:01:24.5]} 27. Bxe3 {[%clk 0:00:48.8]} 27... a5 {[%clk 0:01:21.8]} 28.
Rc2 {[%clk 0:00:42.6]} 28... Rc7 {[%clk 0:01:16]} 29. Rac1 {[%clk 0:00:42]}
29... Rbc8 {[%clk 0:01:17.3]} 30. Kg2 {[%clk 0:00:38.7]} 30... Bd6 {[%clk
0:01:17.9]} 31. Ba6 {[%clk 0:00:38.7]} 31... Bb4 {[%clk 0:01:03.1]} 32. Bxc8
{[%clk 0:00:36.7]} 32... Rxc8 {[%clk 0:01:05]} 33. Bd2 {[%clk 0:00:38.1]} 1-0

[Event "*** Titled Tuesday 3|2 Blitz"]
[Site "Chess.com"]
[Date "2017.05.02"]
[Round "8"]
[White "politeplayer"]
[Black "1lec"]
[Result "0-1"]
[WhiteElo "2057"]
[BlackElo "2065"]
[TimeControl "180+2"]
[EndTime "14:46:28 PDT"]
[Termination "1lec won by checkmate"]

1. e4 {[%clk 0:02:56.5]} 1... c5 {[%clk 0:03:00.7]} 2. Nf3 {[%clk 0:02:57.9]}
2... d6 {[%clk 0:03:02.1]} 3. d4 {[%clk 0:02:59.4]} 3... cxd4 {[%clk 0:03:03.6]}
4. Nxd4 {[%clk 0:03:01]} 4... Nf6 {[%clk 0:03:05.1]} 5. Nc3 {[%clk 0:03:02.6]}
5... a6 {[%clk 0:03:06.6]} 6. Bc4 {[%clk 0:03:01.7]} 6... e6 {[%clk 0:03:07.4]}
7. Bb3 {[%clk 0:03:02.5]} 7... b5 {[%clk 0:03:08.7]} 8. O-O {[%clk 0:03:02.6]}
8... Be7 {[%clk 0:03:10.1]} 9. f4 {[%clk 0:03:03.7]} 9... Qc7 {[%clk 0:03:09.3]}
10. e5 {[%clk 0:03:03.7]} 10... dxe5 {[%clk 0:03:05.1]} 11. fxe5 {[%clk
0:03:04]} 11... Qxe5 {[%clk 0:03:01.8]} 12. Bf4 {[%clk 0:03:05.2]} 12... Qc5
{[%clk 0:03:00]} 13. Kh1 {[%clk 0:02:53]} 13... Nc6 {[%clk 0:02:03.4]} 14. Nxc6
{[%clk 0:01:49.3]} 14... Qxc6 {[%clk 0:02:05.3]} 15. Be5 {[%clk 0:01:44.3]}
15... Bb7 {[%clk 0:02:01.6]} 16. Qe2 {[%clk 0:01:40.6]} 16... O-O {[%clk
0:01:58.3]} 17. Rf3 {[%clk 0:01:35.1]} 17... b4 {[%clk 0:01:28.7]} 18. Nd1
{[%clk 0:01:13.1]} 18... Qe4 {[%clk 0:00:55.4]} 19. Re3 {[%clk 0:01:05.4]} 19...
Qh4 {[%clk 0:00:46.8]} 20. Rg3 {[%clk 0:00:55]} 20... Qe4 {[%clk 0:00:20.4]} 21.
Re3 {[%clk 0:00:49.5]} 21... Qh4 {[%clk 0:00:12.6]} 22. Bg3 {[%clk 0:00:50.5]}
22... Qh6 {[%clk 0:00:09.6]} 23. Nf2 {[%clk 0:00:48.1]} 23... Bc5 {[%clk
0:00:10.1]} 24. Re5 {[%clk 0:00:34.6]} 24... Bd6 {[%clk 0:00:10.2]} 25. Re3
{[%clk 0:00:28.3]} 25... Bxg3 {[%clk 0:00:03.6]} 26. Rxg3 {[%clk 0:00:28.5]}
26... Kh8 {[%clk 0:00:04.8]} 27. Rf1 {[%clk 0:00:26.6]} 27... Rad8 {[%clk
0:00:05]} 28. Rh3 {[%clk 0:00:27.6]} 28... Qg6 {[%clk 0:00:04.2]} 29. c3 {[%clk
0:00:24.5]} 29... Qxg2# {[%clk 0:00:04.1]} 0-1

[Event "*** Titled Tuesday 3|2 Blitz"]
[Site "Chess.com"]
[Date "2017.05.02"]
[Round "8"]
[White "Michelangelo"]
[Black "Vrolijk"]
[Result "1-0"]
[WhiteElo "2655"]
[BlackElo "2348"]
[TimeControl "180+2"]
[EndTime "14:46:29 PDT"]
[Termination "Michelangelo won by resignation"]

1. d4 {[%clk 0:03:02]} 1... Nf6 {[%clk 0:03:00.5]} 2. c4 {[%clk 0:03:03.1]} 2...
g6 {[%clk 0:03:00]} 3. Nc3 {[%clk 0:03:04]} 3... Bg7 {[%clk 0:03:00.1]} 4. e4
{[%clk 0:03:05]} 4... d6 {[%clk 0:03:01.7]} 5. Nf3 {[%clk 0:03:06.3]} 5... O-O
{[%clk 0:03:02.1]} 6. Be2 {[%clk 0:03:07.8]} 6... e5 {[%clk 0:03:03.1]} 7. O-O
{[%clk 0:03:09.3]} 7... Nc6 {[%clk 0:03:04.5]} 8. dxe5 {[%clk 0:03:10.5]} 8...
dxe5 {[%clk 0:03:04.7]} 9. Bg5 {[%clk 0:03:11.3]} 9... Nd4 {[%clk 0:02:50.8]}
10. Nxd4 {[%clk 0:03:10.8]} 10... exd4 {[%clk 0:02:44.4]} 11. Nd5 {[%clk
0:03:10.2]} 11... c6 {[%clk 0:02:41.9]} 12. e5 {[%clk 0:02:29.1]} 12... cxd5
{[%clk 0:02:39.3]} 13. Qxd4 {[%clk 0:02:27.1]} 13... dxc4 {[%clk 0:02:16.1]} 14.
Qh4 {[%clk 0:01:47.8]} 14... h6 {[%clk 0:02:08.3]} 15. Bxf6 {[%clk 0:01:40.9]}
15... Bxf6 {[%clk 0:02:09.4]} 16. exf6 {[%clk 0:01:42.2]} 16... Kh7 {[%clk
0:02:10.3]} 17. Bxc4 {[%clk 0:01:39.3]} 17... Bf5 {[%clk 0:02:03.2]} 18. Rad1
{[%clk 0:01:36.5]} 18... Qb6 {[%clk 0:02:02.4]} 19. Qd4 {[%clk 0:01:14.3]} 19...
Rac8 {[%clk 0:01:47.4]} 20. Qxb6 {[%clk 0:00:46.2]} 20... axb6 {[%clk
0:01:49.3]} 21. b3 {[%clk 0:00:44.6]} 21... Rc6 {[%clk 0:01:47.3]} 22. Rfe1
{[%clk 0:00:45.7]} 22... Rxf6 {[%clk 0:01:33.3]} 23. Re7 {[%clk 0:00:45.7]}
23... Bc8 {[%clk 0:01:27.1]} 24. Rc7 {[%clk 0:00:36.3]} 24... Kg7 {[%clk
0:01:26.9]} 25. a4 {[%clk 0:00:35.4]} 25... Re8 {[%clk 0:01:24.4]} 26. f3 {[%clk
0:00:36.1]} 26... g5 {[%clk 0:01:24.5]} 27. Kf2 {[%clk 0:00:36.5]} 27... g4
{[%clk 0:01:25.7]} 28. Rd3 {[%clk 0:00:32.7]} 28... Bf5 {[%clk 0:01:22.1]} 29.
Re3 {[%clk 0:00:31.5]} 29... Rd8 {[%clk 0:01:22.3]} 30. Rxb7 {[%clk 0:00:27.6]}
30... h5 {[%clk 0:01:16.4]} 31. Ree7 {[%clk 0:00:24.5]} 31... Bg6 {[%clk
0:01:14.4]} 32. Rbd7 {[%clk 0:00:25.5]} 32... Rc8 {[%clk 0:01:03.9]} 33. Kg3
{[%clk 0:00:25.3]} 33... Rc5 {[%clk 0:01:02.9]} 34. f4 {[%clk 0:00:23]} 34...
h4+ {[%clk 0:01:00.9]} 35. Kxh4 {[%clk 0:00:23.7]} 35... Rxf4 {[%clk 0:01:01.6]}
36. Kg3 {[%clk 0:00:24.4]} 36... Rf6 {[%clk 0:00:59.4]} 37. Rd4 {[%clk
0:00:21.5]} 37... Re5 {[%clk 0:00:47.8]} 38. Rxe5 {[%clk 0:00:22]} 1-0

[Event "*** Titled Tuesday 3|2 Blitz"]
[Site "Chess.com"]
[Date "2017.05.02"]
[Round "8"]
[White "PaulfromSPb"]
[Black "penguingm1"]
[Result "1/2-1/2"]
[WhiteElo "2571"]
[BlackElo "2586"]
[TimeControl "180+2"]
[EndTime "14:46:34 PDT"]
[Termination "Game drawn by stalemate"]

1. e4 {[%clk 0:03:02]} 1... e5 {[%clk 0:02:59.1]} 2. Nf3 {[%clk 0:02:58.2]} 2...
Nc6 {[%clk 0:02:59.7]} 3. Bb5 {[%clk 0:02:57]} 3... a6 {[%clk 0:03:00.8]} 4. Ba4
{[%clk 0:02:57.5]} 4... Nf6 {[%clk 0:03:02]} 5. O-O {[%clk 0:02:58.6]} 5... Be7
{[%clk 0:03:03.1]} 6. Re1 {[%clk 0:02:59.4]} 6... b5 {[%clk 0:03:00.4]} 7. Bb3
{[%clk 0:03:00]} 7... d6 {[%clk 0:03:02.3]} 8. c3 {[%clk 0:03:01.1]} 8... O-O
{[%clk 0:03:03.5]} 9. h3 {[%clk 0:03:02.5]} 9... Bb7 {[%clk 0:03:02]} 10. d4
{[%clk 0:03:03.7]} 10... Re8 {[%clk 0:02:59.2]} 11. Nbd2 {[%clk 0:03:03.4]}
11... Bf8 {[%clk 0:03:00.3]} 12. Nf1 {[%clk 0:03:04]} 12... exd4 {[%clk
0:03:00.4]} 13. Ng5 {[%clk 0:02:59.8]} 13... d5 {[%clk 0:02:12.8]} 14. exd5
{[%clk 0:02:49.5]} 14... Rxe1 {[%clk 0:02:11.1]} 15. Qxe1 {[%clk 0:02:50.2]}
15... Na5 {[%clk 0:02:07.1]} 16. Nxf7 {[%clk 0:02:35.1]} 16... Qd7 {[%clk
0:01:42.8]} 17. Ne5 {[%clk 0:02:32.3]} 17... Qe8 {[%clk 0:01:18.1]} 18. Bc2
{[%clk 0:02:18.6]} 18... dxc3 {[%clk 0:01:11.1]} 19. Qxc3 {[%clk 0:02:16.5]}
19... b4 {[%clk 0:01:09.1]} 20. Qxc7 {[%clk 0:02:16.7]} 20... Rc8 {[%clk
0:01:03]} 21. Qxa5 {[%clk 0:02:17.1]} 21... Rxc2 {[%clk 0:01:04.6]} 22. Ng4
{[%clk 0:01:59]} 22... Nxg4 {[%clk 0:00:55.5]} 23. hxg4 {[%clk 0:01:59.6]} 23...
Qe1 {[%clk 0:00:56.9]} 24. Qb6 {[%clk 0:01:45.3]} 24... Bxd5 {[%clk 0:00:46.2]}
25. Qe3 {[%clk 0:01:41]} 25... Qd1 {[%clk 0:00:38]} 26. b3 {[%clk 0:01:40.2]}
26... Qxg4 {[%clk 0:00:29.7]} 27. Qg3 {[%clk 0:01:35.2]} 27... Qd4 {[%clk
0:00:28.2]} 28. Rb1 {[%clk 0:01:30.9]} 28... Qd1 {[%clk 0:00:28.1]} 29. Ra1
{[%clk 0:01:19.5]} 29... Rxc1 {[%clk 0:00:20.9]} 30. Rxc1 {[%clk 0:01:18]} 30...
Qxc1 {[%clk 0:00:22.8]} 31. Qd3 {[%clk 0:01:19]} 31... Qc6 {[%clk 0:00:22.9]}
32. Ne3 {[%clk 0:01:19.8]} 32... Be4 {[%clk 0:00:24]} 33. Qd4 {[%clk 0:01:20]}
33... h6 {[%clk 0:00:22.5]} 34. f3 {[%clk 0:01:19.7]} 34... Bb1 {[%clk
0:00:23.7]} 35. Kh1 {[%clk 0:01:19.3]} 35... Bxa2 {[%clk 0:00:24.7]} 36. Qd3
{[%clk 0:01:17.9]} 36... a5 {[%clk 0:00:21.5]} 37. Ng4 {[%clk 0:01:14.6]} 37...
Qe6 {[%clk 0:00:17.7]} 38. Qb5 {[%clk 0:01:09.6]} 38... Bxb3 {[%clk 0:00:17.6]}
39. Qxa5 {[%clk 0:01:10]} 39... Bd5 {[%clk 0:00:19]} 40. Ne3 {[%clk 0:01:10]}
40... Bxf3 {[%clk 0:00:16.8]} 41. gxf3 {[%clk 0:01:10.8]} 41... Qxe3 {[%clk
0:00:18.4]} 42. Qd5+ {[%clk 0:01:11.2]} 42... Kh8 {[%clk 0:00:20.1]} 43. Qd8
{[%clk 0:01:12.3]} 43... Qxf3+ {[%clk 0:00:21]} 44. Kg1 {[%clk 0:01:12.9]} 44...
b3 {[%clk 0:00:22.2]} 45. Qd6 {[%clk 0:01:11.7]} 45... Bxd6 {[%clk 0:00:23.3]}
1/2-1/2

[Event "*** Titled Tuesday 3|2 Blitz"]
[Site "Chess.com"]
[Date "2017.05.02"]
[Round "8"]
[White "platy3"]
[Black "Drags95"]
[Result "1-0"]
[WhiteElo "2639"]
[BlackElo "2538"]
[TimeControl "180+2"]
[EndTime "14:47:01 PDT"]
[Termination "platy3 won by resignation"]

1. e4 {[%clk 0:03:02]} 1... e5 {[%clk 0:03:01]} 2. Nf3 {[%clk 0:03:00.5]} 2...
Nf6 {[%clk 0:03:02.2]} 3. Nxe5 {[%clk 0:02:58.1]} 3... d6 {[%clk 0:03:03.2]} 4.
Nf3 {[%clk 0:02:59.4]} 4... Nxe4 {[%clk 0:03:04.3]} 5. d4 {[%clk 0:02:57.7]}
5... d5 {[%clk 0:03:05.4]} 6. Bd3 {[%clk 0:02:58.6]} 6... Nc6 {[%clk 0:03:06.2]}
7. O-O {[%clk 0:02:59.4]} 7... Be7 {[%clk 0:03:07.6]} 8. c4 {[%clk 0:02:57.3]}
8... O-O {[%clk 0:03:08.5]} 9. Nc3 {[%clk 0:02:55.1]} 9... Nxc3 {[%clk
0:03:06.8]} 10. bxc3 {[%clk 0:02:57]} 10... dxc4 {[%clk 0:03:08.3]} 11. Bxc4
{[%clk 0:02:57.5]} 11... Bf5 {[%clk 0:03:07.9]} 12. Re1 {[%clk 0:02:52.9]} 12...
Bf6 {[%clk 0:02:59]} 13. Bf4 {[%clk 0:02:37.5]} 13... Qd7 {[%clk 0:02:48.4]} 14.
h3 {[%clk 0:02:36.9]} 14... Rfe8 {[%clk 0:02:45.3]} 15. Qa4 {[%clk 0:02:13.2]}
15... a6 {[%clk 0:02:27.5]} 16. Bb3 {[%clk 0:01:33.5]} 16... b5 {[%clk
0:01:38.2]} 17. Qa3 {[%clk 0:01:34.6]} 17... Be4 {[%clk 0:01:32.3]} 18. Ne5
{[%clk 0:01:23.1]} 18... Bxe5 {[%clk 0:01:26.3]} 19. Rxe4 {[%clk 0:01:21.5]}
19... b4 {[%clk 0:00:39.6]} 20. Qa4 {[%clk 0:01:07.1]} 20... Bf6 {[%clk
0:00:40.8]} 21. Rxe8+ {[%clk 0:00:58.4]} 21... Rxe8 {[%clk 0:00:42.7]} 22. d5
{[%clk 0:00:53.4]} 22... Bxc3 {[%clk 0:00:39.4]} 23. dxc6 {[%clk 0:00:32.5]}
23... Qd4 {[%clk 0:00:36.8]} 24. Bxc7 {[%clk 0:00:24.2]} 24... Bxa1 {[%clk
0:00:35.4]} 25. Bg3 {[%clk 0:00:24.9]} 25... Qc5 {[%clk 0:00:19.3]} 26. c7
{[%clk 0:00:15.9]} 26... Re1+ {[%clk 0:00:18.1]} 27. Kh2 {[%clk 0:00:17]} 27...
Qc1 {[%clk 0:00:20]} 28. Bd1 {[%clk 0:00:12.3]} 28... g6 {[%clk 0:00:19.4]} 29.
Qd7 {[%clk 0:00:10.6]} 29... Rxd1 {[%clk 0:00:02.8]} 30. c8=Q+ {[%clk
0:00:11.3]} 30... Kg7 {[%clk 0:00:04.3]} 31. Qxc1 {[%clk 0:00:10.6]} 31... Rxc1
{[%clk 0:00:06.2]} 32. Qd6 {[%clk 0:00:07.2]} 32... a5 {[%clk 0:00:06.1]} 33.
Be5+ {[%clk 0:00:07.5]} 1-0

[Event "*** Titled Tuesday 3|2 Blitz"]
[Site "Chess.com"]
[Date "2017.05.02"]
[Round "8"]
[White "Rating-Schmating"]
[Black "cailinchetty"]
[Result "0-1"]
[WhiteElo "2185"]
[BlackElo "1940"]
[TimeControl "180+2"]
[EndTime "14:47:04 PDT"]
[Termination "cailinchetty won by checkmate"]

1. e4 {[%clk 0:03:01.9]} 1... c5 {[%clk 0:03:01.3]} 2. Nf3 {[%clk 0:03:01.8]}
2... Nc6 {[%clk 0:03:02.7]} 3. d4 {[%clk 0:03:02.6]} 3... cxd4 {[%clk
0:03:04.2]} 4. Nxd4 {[%clk 0:03:03.5]} 4... g6 {[%clk 0:03:05.5]} 5. Nxc6 {[%clk
0:03:02.6]} 5... bxc6 {[%clk 0:03:05.9]} 6. Qd4 {[%clk 0:03:01.2]} 6... Nf6
{[%clk 0:03:06.9]} 7. e5 {[%clk 0:03:01.4]} 7... Ng8 {[%clk 0:03:08.2]} 8. e6
{[%clk 0:02:56.1]} 8... Nf6 {[%clk 0:03:08.5]} 9. exf7+ {[%clk 0:02:55.9]} 9...
Kxf7 {[%clk 0:03:09.8]} 10. c4 {[%clk 0:02:55]} 10... Bg7 {[%clk 0:03:09.9]} 11.
Nc3 {[%clk 0:02:54.9]} 11... d5 {[%clk 0:03:02.5]} 12. cxd5 {[%clk 0:02:54.6]}
12... cxd5 {[%clk 0:03:03.6]} 13. Bg5 {[%clk 0:02:53.6]} 13... e5 {[%clk
0:03:04.3]} 14. Qd2 {[%clk 0:02:43]} 14... Be6 {[%clk 0:02:55.9]} 15. Bd3 {[%clk
0:02:27.6]} 15... d4 {[%clk 0:02:42]} 16. Ne4 {[%clk 0:02:23.1]} 16... Bf5
{[%clk 0:02:35.6]} 17. Bc4+ {[%clk 0:02:08]} 17... Ke8 {[%clk 0:02:25]} 18. Bb5+
{[%clk 0:01:53.4]} 18... Kf7 {[%clk 0:02:24.4]} 19. Bc4+ {[%clk 0:01:54]} 19...
Ke8 {[%clk 0:02:23.8]} 20. Nxf6+ {[%clk 0:01:53.7]} 20... Bxf6 {[%clk
0:02:23.9]} 21. Bxf6 {[%clk 0:01:55.2]} 21... Qxf6 {[%clk 0:02:25]} 22. O-O
{[%clk 0:01:56.1]} 22... Kf8 {[%clk 0:02:15.9]} 23. Qb4+ {[%clk 0:01:53.5]}
23... Kg7 {[%clk 0:02:17.1]} 24. Qb7+ {[%clk 0:01:51.8]} 24... Kh6 {[%clk
0:02:17.6]} 25. f4 {[%clk 0:01:46.9]} 25... e4 {[%clk 0:02:17.4]} 26. Bd5 {[%clk
0:01:41.7]} 26... Rab8 {[%clk 0:02:12.5]} 27. Qxa7 {[%clk 0:01:26.9]} 27... Rhd8
{[%clk 0:02:11.3]} 28. g4 {[%clk 0:01:22.7]} 28... Bxg4 {[%clk 0:02:06.8]} 29.
Bxe4 {[%clk 0:01:23.3]} 29... Rxb2 {[%clk 0:02:04.4]} 30. Qc7 {[%clk 0:01:13.5]}
30... Qh4 {[%clk 0:02:01.1]} 31. f5 {[%clk 0:01:10.3]} 31... gxf5 {[%clk
0:01:42]} 32. Qc6+ {[%clk 0:00:44.5]} 32... Kg7 {[%clk 0:01:35.8]} 33. Bg2
{[%clk 0:00:45.2]} 33... Qf6 {[%clk 0:01:26.2]} 34. Qc7+ {[%clk 0:00:43.3]}
34... Kg6 {[%clk 0:01:24.9]} 35. Rae1 {[%clk 0:00:43]} 35... Rd6 {[%clk
0:01:21.6]} 36. Re8 {[%clk 0:00:40.6]} 36... d3 {[%clk 0:01:15.9]} 37. Rg8+
{[%clk 0:00:40.5]} 37... Kh6 {[%clk 0:01:16.8]} 38. Qc1+ {[%clk 0:00:34.9]}
38... d2 {[%clk 0:01:16.2]} 39. Qc4 {[%clk 0:00:27.8]} 39... d1=Q {[%clk
0:01:13.6]} 40. Qf4+ {[%clk 0:00:28.7]} 40... Kh5 {[%clk 0:01:12.4]} 41. Kh1
{[%clk 0:00:21.1]} 41... Qd2 {[%clk 0:01:04.4]} 42. Rg1 {[%clk 0:00:20.1]} 42...
Qxf4 {[%clk 0:01:03.7]} 43. Re8 {[%clk 0:00:20.1]} 43... Rdd2 {[%clk 0:01:03.3]}
44. h3 {[%clk 0:00:20.1]} 44... Qh4 {[%clk 0:01:03.6]} 45. Re3 {[%clk
0:00:18.2]} 45... Qxe3 {[%clk 0:01:03.3]} 46. a4 {[%clk 0:00:18.9]} 46... Qexh3+
{[%clk 0:01:03.5]} 47. Bxh3 {[%clk 0:00:19.4]} 47... Qxh3# {[%clk 0:01:05.1]}
0-1

[Event "*** Titled Tuesday 3|2 Blitz"]
[Site "Chess.com"]
[Date "2017.05.02"]
[Round "8"]
[White "bancsoo"]
[Black "yurisolo"]
[Result "0-1"]
[WhiteElo "2587"]
[BlackElo "2540"]
[TimeControl "180+2"]
[EndTime "14:47:08 PDT"]
[Termination "yurisolo won by resignation"]

1. Nf3 {[%clk 0:03:02]} 1... c5 {[%clk 0:02:59.4]} 2. c4 {[%clk 0:03:02.4]} 2...
Nf6 {[%clk 0:02:59.7]} 3. Nc3 {[%clk 0:03:03.2]} 3... e6 {[%clk 0:03:00.9]} 4.
g3 {[%clk 0:03:03.9]} 4... b6 {[%clk 0:03:02.2]} 5. Bg2 {[%clk 0:03:05.6]} 5...
Bb7 {[%clk 0:03:03.1]} 6. O-O {[%clk 0:03:07.2]} 6... Be7 {[%clk 0:03:03.7]} 7.
d4 {[%clk 0:03:08.6]} 7... cxd4 {[%clk 0:03:04.4]} 8. Qxd4 {[%clk 0:03:10.2]}
8... O-O {[%clk 0:03:05.6]} 9. Rd1 {[%clk 0:03:11.4]} 9... d6 {[%clk 0:03:05.3]}
10. b3 {[%clk 0:03:08.9]} 10... Nbd7 {[%clk 0:03:02.5]} 11. Bb2 {[%clk
0:03:07.1]} 11... a6 {[%clk 0:03:03.3]} 12. e4 {[%clk 0:03:04.9]} 12... Qc7
{[%clk 0:03:00.6]} 13. Qe3 {[%clk 0:03:02.8]} 13... Rfe8 {[%clk 0:03:01.2]} 14.
h3 {[%clk 0:03:03.7]} 14... Bf8 {[%clk 0:02:59.7]} 15. Rac1 {[%clk 0:03:02.9]}
15... Rad8 {[%clk 0:02:59.4]} 16. Nh2 {[%clk 0:03:03.1]} 16... Qb8 {[%clk
0:02:46.4]} 17. Ng4 {[%clk 0:02:54]} 17... Be7 {[%clk 0:02:28.8]} 18. Qf4 {[%clk
0:02:35.4]} 18... Nxg4 {[%clk 0:02:06.9]} 19. Qxg4 {[%clk 0:02:26.5]} 19... Nf6
{[%clk 0:02:04.9]} 20. Qe2 {[%clk 0:02:25.6]} 20... Rc8 {[%clk 0:01:58.8]} 21.
Kh2 {[%clk 0:02:22.4]} 21... h6 {[%clk 0:01:58.2]} 22. Re1 {[%clk 0:02:21.7]}
22... Ba8 {[%clk 0:01:40.6]} 23. f4 {[%clk 0:02:20.8]} 23... Nd7 {[%clk
0:01:27.8]} 24. Rcd1 {[%clk 0:02:20.2]} 24... Rcd8 {[%clk 0:01:24.9]} 25. Bf3
{[%clk 0:02:12.9]} 25... Bc6 {[%clk 0:01:03.8]} 26. Rc1 {[%clk 0:01:53.8]} 26...
Rc8 {[%clk 0:00:59.4]} 27. Rc2 {[%clk 0:01:29.8]} 27... b5 {[%clk 0:00:59]} 28.
cxb5 {[%clk 0:01:30.1]} 28... axb5 {[%clk 0:01:00.9]} 29. Rec1 {[%clk
0:01:31.7]} 29... Bf6 {[%clk 0:01:00.8]} 30. Ba3 {[%clk 0:01:16.7]} 30... b4
{[%clk 0:00:51.6]} 31. Nd1 {[%clk 0:01:07]} 31... Bxe4 {[%clk 0:00:47.4]} 32.
Rxc8 {[%clk 0:00:21.3]} 32... Rxc8 {[%clk 0:00:47.4]} 33. Rxc8+ {[%clk
0:00:22.4]} 33... Qxc8 {[%clk 0:00:49.3]} 34. Bxb4 {[%clk 0:00:23.2]} 34... Bxf3
{[%clk 0:00:40.7]} 35. Qxf3 {[%clk 0:00:24.2]} 35... Qc2+ {[%clk 0:00:41.9]} 36.
Nf2 {[%clk 0:00:25.8]} 36... Qxa2 {[%clk 0:00:42.4]} 37. Bxd6 {[%clk 0:00:25.6]}
37... Bd4 {[%clk 0:00:21.8]} 38. Kg2 {[%clk 0:00:26.7]} 38... Qd2 {[%clk
0:00:22.8]} 39. b4 {[%clk 0:00:24.2]} 39... Bxf2 {[%clk 0:00:21.3]} 0-1